bitfinex/quotes_ETHUSD_20251120
["timestamp","ask_amount","ask_price","bid_price","bid_amount"]
[1763648193935,0.119,2973.3,2972.7,3.36394523]
[1763648194230,0.119,2973.3,2972.7,6.72789046]
[1763648194415,0.119,2973.4,2972.8,1.39240988]
[1763648194595,0.6473,2973.9,2972.8,2.29940252]
[1763648194795,0.5729,2973.8,2972.8,2.29940252]
[1763648195240,0.4539,2973.7,2972.8,2.29940252]
[1763648195617,0.4539,2973.7,2972.7,0.90699264]
[1763648195825,0.1934,2972.8,2972.2,0.90699264]
[1763648196030,0.1934,2972.8,2972.2,4.27150377]
[1763648196239,0.1934,2972.8,2972.2,4.30514888]
[1763648196451,0.1934,2972.8,2972.2,0.90699264]
[1763648196616,0.4948,2972.3,2972.0,0.001]
[1763648196942,0.6138,2972.2,2972.0,0.001]
[1763648197237,0.119,2972.2,2972.0,0.001]
[1763648197908,0.4539,2972.6,2972.0,3.36573048]
[1763648198106,0.119,2972.5,2972.0,0.76486501]
[1763648198312,0.119,2972.5,2972.0,0.001]
[1763648198503,0.4561,2972.4,2972.0,0.001]
[1763648199342,0.4951,2972.1,2972.0,0.001]
[1763648199748,0.9512,2972.1,2972.0,0.001]
[1763648199944,0.9512,2972.1,2971.8,0.001]
[1763648200136,0.6533,2971.9,2971.8,0.001]
[1763648200334,0.7723,2971.9,2971.8,0.001]
[1763648200523,1.2284,2971.9,2971.8,0.001]
[1763648202811,0.4561,2972.7,2971.8,0.001]
[1763648203016,0.5751,2972.6,2971.8,0.001]
[1763648203469,0.119,2972.6,2971.8,0.001]
[1763648203792,0.119,2972.5,2972.0,0.001]
[1763648203936,0.1934,2972.8,2972.0,0.001]
[1763648204136,0.119,2972.7,2972.0,0.90799264]
[1763648204346,0.119,2972.8,2972.1,0.8104201]
[1763648204575,0.119,2973.0,2972.4,7.19620834]
[1763648204957,0.1934,2973.9,2972.9,7.19620834]
[1763648205147,0.119,2973.8,2973.0,0.90699264]
[1763648205345,0.119,2973.8,2973.1,0.8103201]
[1763648205762,0.119,2973.8,2973.2,0.405504]
[1763648206061,0.119,2973.8,2973.3,0.90699264]
[1763648207972,0.119,2974.5,2973.9,3.36258784]
[1763648208278,0.1182,2974.5,2973.9,6.72517568]
[1763648208474,0.1182,2974.5,2974.0,0.76321683]
[1763648209371,0.5743,2974.5,2974.0,0.76321683]
[1763648209949,0.6436,2975.0,2974.1,6.72472344]
[1763648210154,0.119,2974.9,2974.1,6.72472344]
[1763648210861,0.119,2974.9,2974.0,0.76321683]
[1763648210862,0.119,2974.8,2974.0,0.76321683]
[1763648211061,0.119,2974.8,2973.8,10.9950954]
[1763648211274,0.119,2974.8,2973.8,7.63239448]
[1763648211454,0.5751,2974.8,2973.8,4.26969356]
[1763648211850,0.4561,2974.7,2973.8,4.26969356]
[1763648212785,0.6826,2973.9,2973.1,4.17381275]
[1763648212988,0.6141,2973.8,2973.1,6.7269853]
[1763648213282,0.6141,2973.8,2972.9,3.36368148]
[1763648213283,0.6141,2973.8,2973.0,0.90699264]
[1763648213486,0.6141,2973.8,2972.9,6.72742369]
[1763648213879,0.4561,2974.5,2973.3,7.19620834]
[1763648214051,0.119,2974.4,2973.4,1.62661347]
[1763648214256,0.119,2974.4,2973.5,6.72608036]
[1763648214863,0.119,2974.4,2973.6,0.90699264]
[1763648215795,0.4561,2974.5,2973.6,0.90699264]
[1763648216091,0.119,2974.5,2973.8,7.19620834]
[1763648216300,0.119,2974.5,2973.9,0.71962083]
[1763648216460,0.119,2974.5,2973.8,10.5588825]
[1763648216661,0.4561,2974.4,2973.8,3.36267416]
[1763648217057,0.4561,2974.4,2973.6,3.36285766]
[1763648217259,0.4561,2974.4,2973.6,4.2698503]
[1763648217595,0.4561,2974.4,2973.7,0.90699264]
[1763648217762,0.4561,2974.4,2973.6,3.36285766]
[1763648217959,0.4561,2974.4,2973.7,0.90699264]
[1763648218181,0.119,2974.3,2973.8,0.90699264]
[1763648218401,0.4561,2974.4,2973.9,0.03362587]
[1763648218623,0.119,2974.3,2973.9,0.90699264]
[1763648218814,0.119,2974.3,2973.9,0.94061851]
[1763648218979,0.119,2974.3,2974.0,0.81368269]
[1763648219617,0.119,2974.3,2973.8,0.90699264]
[1763648220310,0.119,2974.3,2973.9,4.26958048]
[1763648220682,0.119,2974.3,2973.9,7.63216832]
[1763648220913,0.6436,2975.0,2974.2,0.0225]
[1763648221115,0.119,2974.5,2974.2,0.0225]
[1763648221412,0.119,2974.5,2974.0,0.90699264]
[1763648222003,0.4951,2974.1,2973.6,0.49894711]
[1763648222313,0.4561,2974.4,2973.2,0.90699264]
[1763648222314,0.4951,2974.0,2973.2,0.90699264]
[1763648222679,0.1875,2975.1,2973.2,0.90699264]
[1763648222680,0.002,2975.7,2973.9,0.0225]
[1763648222887,0.002,2975.7,2975.1,7.19620834]
[1763648223118,0.002,2975.7,2975.3,0.0225]
[1763648223318,0.002,2975.7,2975.3,0.8350701]
[1763648223613,0.002,2975.7,2975.3,0.0225]
[1763648224281,0.002,2975.7,2975.3,4.29049825]
[1763648224622,0.002,2975.7,2975.2,0.90699264]
[1763648224778,0.002,2975.7,2975.1,0.90699264]
[1763648224983,0.4581,2975.7,2974.4,10.55823093]
[1763648225210,0.4581,2975.7,2974.5,0.90699264]
[1763648225211,0.4581,2975.4,2974.5,0.90699264]
[1763648225417,0.002,2975.4,2974.5,0.90699264]
[1763648226636,0.002,2975.4,2974.7,0.90699264]
[1763648226803,0.002,2975.4,2974.6,6.72359308]
[1763648227001,0.002,2975.4,2974.6,8.11557322]
[1763648227203,0.002,2976.0,2975.0,10.50870488]
[1763648227440,0.002,2976.6,2976.0,1.31249664]
[1763648227599,0.002,2976.6,2976.0,0.90699264]
[1763648228442,0.002,2976.6,2975.9,7.19620834]
[1763648228644,0.002,2976.6,2976.0,6.7204301]
[1763648228833,0.002,2976.6,2976.0,3.36021505]
[1763648229016,0.002,2976.6,2976.0,0.90699264]
[1763648229017,0.4686,2976.5,2976.0,0.90699264]
[1763648229224,0.4686,2976.5,2975.7,0.90699264]
[1763648230021,0.002,2976.6,2976.1,7.19620834]
[1763648230353,0.002,2976.6,2976.2,0.71962083]
[1763648230643,0.002,2976.6,2976.3,6.7197527]
[1763648230839,0.002,2976.6,2976.3,3.35987635]
[1763648231139,0.002,2976.6,2976.4,0.90699264]
[1763648232351,0.0012,2976.6,2976.4,0.90699264]
[1763648232507,0.0012,2976.6,2976.4,1.74162926]
[1763648232707,0.0012,2976.6,2976.5,3.35965059]
[1763648233127,0.0012,2976.6,2976.2,1.62661347]
[1763648233359,0.4698,2976.6,2975.8,0.90699264]
[1763648233558,0.4698,2976.6,2975.6,7.19620834]
[1763648233559,0.4698,2976.6,2975.6,10.55685009]
[1763648233759,0.118,2976.5,2975.6,10.55685009]
[1763648234056,0.118,2976.5,2975.7,0.90699264]
[1763648234259,0.4686,2976.4,2975.7,0.90699264]
[1763648234627,0.4686,2976.4,2975.8,3.36044088]
[1763648235181,0.4686,2976.4,2975.7,0.90699264]
[1763648235545,0.4686,2976.4,2975.7,4.26752833]
[1763648235775,0.118,2976.5,2975.7,5.21318489]
[1763648235934,0.4686,2976.4,2975.7,5.21318489]
[1763648236277,0.4686,2976.4,2975.7,1.8526492]
[1763648236439,0.1947,2975.8,2975.7,1.8526492]
[1763648236641,0.1947,2975.8,2975.5,7.19620834]
[1763648236830,0.1947,2975.8,2974.9,7.19620834]
[1763648236831,0.4505,2975.6,2974.9,7.19620834]
[1763648237034,0.4505,2975.6,2974.6,1.39198014]
[1763648237231,0.1947,2974.9,2974.4,10.55821843]
[1763648237529,0.4686,2975.5,2974.4,10.55823093]
[1763648237732,0.4686,2975.5,2974.4,13.92025352]
[1763648237975,0.4686,2975.5,2974.5,0.90699264]
[1763648238186,0.4686,2975.5,2974.6,1.81892688]
[1763648239578,0.118,2975.7,2975.0,0.78254009]
[1763648239969,0.4686,2975.6,2975.0,0.78254009]
[1763648240742,0.4686,2975.6,2975.1,3.36123155]
[1763648242144,0.1947,2975.8,2975.1,3.36123155]
[1763648242337,0.1947,2975.8,2975.1,6.7224631]
[1763648242338,0.3127,2975.8,2975.1,6.7224631]
[1763648242543,0.3127,2975.8,2975.2,6.88479367]
[1763648242743,0.1947,2975.8,2975.3,3.36100561]
[1763648242987,0.1947,2975.8,2975.1,1.74819222]
[1763648242988,0.6633,2975.8,2975.1,1.74819222]
[1763648243147,0.6633,2975.8,2975.1,5.10939555]
[1763648243345,0.4686,2975.7,2975.1,0.90699264]
[1763648243561,0.4686,2975.7,2975.1,4.2682192]
[1763648243865,0.4686,2975.7,2975.1,4.26821332]
[1763648244394,0.002,2976.0,2975.6,6.90729367]
[1763648244888,0.002,2976.0,2975.7,3.36055381]
[1763648245289,0.002,2976.0,2975.7,4.72114692]
[1763648245453,0.002,2976.0,2975.8,0.90699264]
[1763648245893,0.1947,2975.9,2975.7,1.36059311]
[1763648246059,0.1947,2975.9,2975.6,0.90699264]
[1763648246954,0.002,2976.0,2975.4,7.62874465]
[1763648247198,0.002,2976.3,2975.9,0.0225]
[1763648247361,0.002,2976.3,2976.2,7.79178631]
[1763648248090,0.002,2976.3,2976.2,0.90699264]
[1763648248394,0.002,2976.3,2975.8,0.90699264]
[1763648248590,0.002,2976.3,2975.9,0.77917863]
[1763648248905,0.002,2976.3,2976.1,6.88479367]
[1763648250759,0.002,2976.3,2976.2,4.26698188]
[1763648251393,0.002,2976.3,2976.2,4.67248588]
[1763648251989,0.002,2976.3,2976.2,4.26698188]
[1763648252387,0.002,2976.3,2976.2,5.38215944]
[1763648254493,0.0012,2976.6,2976.2,12.55264192]
[1763648254695,0.0012,2976.6,2976.5,7.79178631]
[1763648254907,0.0012,2976.6,2976.5,11.1514369]
[1763648256030,0.0012,2976.6,2976.5,7.79178631]
[1763648256198,0.9583,2976.6,2976.2,0.90699264]
[1763648256366,0.0004,2976.6,2976.2,0.90699264]
[1763648256766,0.4669,2976.6,2976.2,0.90699264]
[1763648256978,0.4669,2976.6,2976.2,4.26692434]
[1763648257178,0.0004,2976.6,2976.2,9.07808788]
[1763648257399,0.0004,2976.6,2976.5,7.79178631]
[1763648257597,0.002,2976.9,2976.5,7.81428631]
[1763648257904,0.12,2977.2,2976.5,7.81428631]
[1763648257905,0.002,2977.2,2976.8,0.0225]
[1763648258119,0.002,2977.2,2977.1,7.81428631]
[1763648258265,0.002,2978.0,2977.3,0.405504]
[1763648258598,0.002,2978.0,2977.2,0.90699264]
[1763648258599,0.002,2978.0,2977.9,0.90699264]
[1763648259107,0.002,2978.0,2977.2,0.118]
[1763648259108,0.9862,2978.0,2977.5,0.90699264]
[1763648259322,0.494,2977.9,2977.5,0.90699264]
[1763648259465,0.4922,2978.0,2977.5,0.90699264]
[1763648259661,0.002,2978.0,2977.5,2.3578962]
[1763648259910,0.4922,2978.0,2977.5,2.3578962]
[1763648260216,0.002,2978.0,2977.5,2.3578962]
[1763648260558,0.002,2978.0,2977.9,0.90699264]
[1763648261047,0.002,2978.0,2977.9,4.26506376]
[1763648261216,0.002,2978.0,2977.9,5.71586827]
[1763648261610,0.002,2978.0,2977.9,5.73836827]
[1763648262450,0.002,2978.0,2977.6,0.90699264]
[1763648262754,0.002,2978.0,2977.9,0.90699264]
[1763648263334,0.002,2978.0,2977.9,4.26506376]
[1763648263536,0.002,2978.0,2977.9,4.28756376]
[1763648263740,0.002,2978.0,2977.9,4.26506376]
[1763648264037,0.002,2978.0,2977.9,0.90699264]
[1763648264238,0.002,2978.0,2977.9,4.26506376]
[1763648264636,0.496,2978.0,2977.7,4.26528931]
[1763648264848,0.1868,2977.9,2977.7,0.90699264]
[1763648265220,0.002,2978.0,2977.7,4.26521168]
[1763648265418,0.002,2978.0,2977.7,8.83550318]
[1763648265957,0.1868,2977.9,2977.7,2.11898747]
[1763648266113,0.494,2977.8,2977.7,0.90699264]
[1763648266450,0.002,2978.0,2977.6,6.88479367]
[1763648266648,0.002,2978.0,2977.7,0.90699264]
[1763648267217,0.494,2977.8,2977.2,0.90699264]
[1763648267421,0.494,2977.7,2977.2,1.68617127]
[1763648267617,0.4902,2977.9,2977.6,0.90699264]
[1763648267821,0.002,2978.0,2977.6,0.90699264]
[1763648268035,0.494,2977.7,2977.6,0.90699264]
[1763648268618,0.4922,2978.0,2977.6,0.90699264]
[1763648269029,0.002,2978.0,2977.9,7.79178631]
[1763648269243,0.002,2978.0,2977.9,11.14985743]
[1763648269645,0.002,2978.0,2977.1,3.3589329]
[1763648269646,0.496,2978.0,2976.7,1.19352967]
[1763648269842,0.6808,2977.9,2977.4,6.88479367]
[1763648270041,0.6808,2977.9,2977.3,0.90699264]
[1763648270241,0.6808,2977.9,2977.7,0.90699264]
[1763648270242,1.171,2977.9,2977.7,0.90699264]
[1763648270449,0.002,2978.0,2977.7,0.90699264]
[1763648271234,0.002,2978.0,2977.9,0.90699264]
[1763648272089,0.002,2978.0,2977.9,0.92949264]
[1763648272764,0.002,2978.0,2977.9,0.0225]
[1763648272970,0.002,2978.0,2977.9,7.81428631]
[1763648273127,0.002,2978.0,2977.9,11.17235743]
[1763648273458,0.002,2978.0,2977.9,11.29035743]
[1763648273666,0.0016,2978.3,2977.9,11.71836143]
[1763648273863,0.002,2978.5,2978.2,0.0225]
[1763648274063,0.002,2978.5,2978.4,7.79178631]
[1763648274736,0.002,2978.5,2978.4,8.21979031]
[1763648275172,0.002,2978.5,2978.4,11.57729769]
[1763648275674,0.002,2978.5,2977.9,3.35807112]
[1763648275675,0.9862,2978.5,2977.8,4.55165669]
[1763648275844,0.002,2978.5,2978.4,0.0225]
[1763648276045,0.002,2978.5,2978.4,7.79178631]
[1763648277241,0.496,2978.5,2978.4,7.79178631]
[1763648277444,0.496,2978.5,2977.6,1.19352967]
[1763648277445,0.002,2978.5,2978.3,6.88479367]
[1763648277752,0.002,2978.5,2978.4,0.90699264]
[1763648279165,0.002,2978.5,2978.4,4.28700002]
[1763648279375,0.002,2978.6,2978.5,0.405504]
[1763648280149,0.0012,2978.6,2978.5,0.405504]
[1763648280349,0.9854,2978.6,2978.3,0.90699264]
[1763648280580,0.494,2978.4,2977.8,6.88479367]
[1763648280778,0.002,2978.5,2978.2,6.88479367]
[1763648281081,0.002,2978.5,2978.4,0.405504]
[1763648281281,0.002,2978.8,2978.5,0.0225]
[1763648281494,0.002,2978.8,2978.7,7.81428631]
[1763648281652,0.002,2978.8,2978.7,8.19729031]
[1763648282047,0.002,2979.4,2978.8,1.31249664]
[1763648282249,0.4902,2979.3,2978.8,1.43049664]
[1763648283283,0.4902,2979.3,2979.0,0.90699264]
[1763648283484,0.002,2979.4,2979.0,0.90699264]
[1763648283683,0.4922,2979.4,2979.0,0.90699264]
[1763648283886,0.002,2979.4,2979.1,0.405504]
[1763648284089,0.002,2979.4,2979.3,7.79178631]
[1763648284305,0.6898,2980.4,2979.3,7.81428631]
[1763648284599,0.6898,2980.4,2980.2,6.88479367]
[1763648284984,0.1996,2980.4,2980.2,7.29029767]
[1763648285166,0.3048,2981.4,2980.3,0.92949264]
[1763648285363,0.6808,2980.3,2979.7,1.19352967]
[1763648285614,0.494,2980.2,2979.6,11.14794149]
[1763648285772,0.9842,2980.2,2979.7,0.90699264]
[1763648285964,0.1868,2979.8,2979.7,0.90699264]
[1763648286164,0.1868,2980.3,2980.1,0.90699264]
[1763648286365,0.1868,2980.5,2980.1,0.90699264]
[1763648286577,0.1868,2980.5,2980.4,7.79178631]
[1763648286801,0.17553424,2982.1,2980.6,0.405504]
[1763648287012,0.1868,2981.7,2981.4,0.405504]
[1763648287194,0.677,2981.9,2981.4,1.31249664]
[1763648287364,0.677,2981.9,2981.6,0.90699264]
[1763648287567,0.4902,2981.8,2981.6,0.90699264]
[1763648287768,0.494,2981.7,2981.4,4.26109186]
[1763648288000,0.4902,2982.6,2981.4,7.73322079]
[1763648288309,0.677,2982.2,2981.8,0.90699264]
[1763648288677,0.5855,2982.7,2981.9,0.405504]
[1763648288879,0.1816,2982.9,2982.6,0.90699264]
[1763648289190,0.1816,2982.9,2982.2,0.90699264]
[1763648289502,0.1816,2982.9,2982.6,0.90699264]
[1763648289663,0.1816,2982.9,2982.1,0.118]
[1763648289664,0.6491,2982.9,2982.1,6.88479367]
[1763648289884,0.6491,2982.9,2982.2,0.90699264]
[1763648290089,0.4675,2982.8,2982.2,0.90699264]
[1763648290323,0.1816,2982.9,2982.5,6.88479367]
[1763648290689,0.118,2983.7,2982.6,0.90699264]
[1763648290892,0.1816,2984.8,2983.8,0.405504]
[1763648291144,0.1816,2985.5,2984.7,6.88479367]
[1763648291295,0.1816,2985.5,2984.8,1.02499264]
[1763648291493,0.1816,2985.5,2985.3,0.90699264]
[1763648291691,0.1816,2985.5,2984.5,0.405504]
[1763648291692,0.1816,2985.5,2985.1,0.90699264]
[1763648291890,0.1816,2987.1,2985.5,0.90699264]
[1763648292129,0.1816,2988.0,2987.0,0.90699264]
[1763648292130,0.1816,2987.6,2987.0,0.90699264]
[1763648292332,0.1816,2987.6,2987.5,6.88479367]
[1763648292629,0.1816,2988.0,2987.6,0.90699264]
[1763648292787,0.00695996,2988.3,2987.9,6.88479367]
[1763648292988,0.4675,2988.2,2988.0,0.405504]
[1763648293217,0.00695996,2988.3,2988.0,6.88479367]
[1763648293418,0.00695996,2988.3,2987.9,0.90699264]
[1763648293732,0.002,2988.7,2988.3,0.90699264]
[1763648293931,0.118,2989.9,2988.7,0.405504]
[1763648294130,0.1816,2992.0,2988.7,0.405504]
[1763648294131,0.4675,2990.6,2989.9,0.90699264]
[1763648294302,0.4675,2990.6,2989.8,6.88479367]
[1763648294490,0.4675,2990.6,2988.1,4.02063648]
[1763648294491,2.771545,2990.5,2986.9,6.49172704]
[1763648294822,0.118,2990.4,2987.0,1.02499264]
[1763648295046,0.118,2990.4,2986.0,3.3488824]
[1763648295047,2.99166464,2990.3,2986.9,0.118]
[1763648295202,0.405504,2989.6,2987.0,0.90699264]
[1763648295403,0.405504,2989.3,2987.2,0.90699264]
[1763648295632,1.31249664,2988.9,2986.3,5.92339197]
[1763648295814,0.4675,2989.3,2986.8,5.92339197]
[1763648296135,0.4675,2989.3,2985.7,13.39719328]
[1763648296136,1.37449264,2989.3,2987.3,0.90699264]
[1763648296352,0.5855,2989.2,2987.8,0.90699264]
[1763648296501,0.5855,2989.2,2987.5,0.90699264]
[1763648296703,0.4675,2989.1,2987.5,0.90699264]
[1763648296939,0.1816,2987.6,2986.9,5.92339197]
[1763648297138,0.1816,2988.7,2986.9,5.92339197]
[1763648297299,0.1816,2988.7,2986.3,0.118]
[1763648297300,0.1816,2988.2,2987.3,0.405504]
[1763648297520,0.4675,2988.1,2987.2,0.90699264]
[1763648297733,0.1816,2988.7,2987.2,0.90699264]
[1763648297968,0.1816,2989.6,2988.3,0.90699264]
[1763648298273,0.1816,2989.6,2988.1,0.118]
[1763648298423,0.5685,2989.5,2988.1,0.90699264]
[1763648298625,0.002,2988.2,2987.7,0.405504]
[1763648298851,0.002,2988.2,2987.2,5.92339197]
[1763648299054,0.1816,2987.8,2985.1,10.04991456]
[1763648299274,0.118,2987.7,2986.1,5.92339197]
[1763648299426,0.118,2987.7,2986.1,9.27213555]
[1763648299427,3.93256628,2987.7,2986.1,9.27213555]
[1763648299630,3.93256628,2987.7,2985.6,5.92339197]
[1763648299631,7.27963256,2987.7,2985.6,5.92339197]
[1763648299940,0.4675,2987.6,2985.7,0.90699264]
[1763648300138,0.405504,2987.4,2985.6,5.92339197]
[1763648300338,0.405504,2987.2,2985.6,5.92339197]
[1763648300525,0.4675,2987.3,2984.6,0.15150532]
[1763648300526,0.118,2987.1,2985.1,5.92339197]
[1763648300864,0.405504,2987.0,2984.7,7.12049448]
[1763648301063,0.873004,2987.0,2984.8,0.90699264]
[1763648301223,0.873004,2987.0,2984.7,7.12049448]
[1763648301421,1.31249664,2986.6,2983.9,7.12049448]
[1763648301860,0.405504,2986.1,2982.5,3.35288815]
[1763648302045,0.405504,2985.9,2983.7,7.12049448]
[1763648302222,0.405504,2985.9,2983.8,0.94050695]
[1763648302424,0.405504,2985.7,2983.9,0.03351318]
[1763648303059,0.4675,2985.6,2983.8,0.03351431]
[1763648303367,0.4675,2985.6,2983.8,0.94050695]
[1763648303532,0.2996,2985.5,2984.3,0.90699264]
[1763648303721,0.4675,2985.4,2984.3,0.90699264]
[1763648303923,0.1816,2985.9,2984.4,0.43901157]
[1763648304166,0.5847,2986.5,2985.4,0.90699264]
[1763648304325,0.1816,2987.8,2985.9,1.31249664]
[1763648304524,0.1816,2987.8,2986.1,0.405504]
[1763648304729,3.34719104,2987.6,2986.1,0.405504]
[1763648304960,0.1816,2987.8,2986.5,0.405504]
[1763648305161,0.1816,2987.8,2986.3,7.12049448]
[1763648305162,0.1816,2987.8,2986.9,1.31249664]
[1763648305488,0.12,2988.2,2987.4,0.405504]
[1763648305700,0.002,2988.2,2987.9,1.31249664]
[1763648306040,0.1816,2990.1,2988.1,0.405504]
[1763648306286,0.1816,2990.4,2988.0,0.118]
[1763648306287,0.1816,2990.4,2988.8,1.31249664]
[1763648306440,0.4675,2990.5,2989.7,0.90699264]
[1763648306636,0.4675,2990.5,2987.9,0.49914684]
[1763648306637,0.4675,2990.5,2989.3,0.405504]
[1763648307456,0.4675,2990.5,2989.5,0.405504]
[1763648307761,0.4675,2990.5,2988.8,3.34573789]
[1763648307977,3.81142869,2990.5,2988.9,1.31249664]
[1763648308173,0.118,2990.4,2989.3,0.405504]
[1763648308377,0.4675,2990.5,2989.7,1.31249664]
[1763648308714,0.4675,2990.5,2989.0,0.118]
[1763648308715,0.4675,2992.0,2990.5,1.31249664]
[1763648308992,0.4675,2992.0,2988.8,16.72903553]
[1763648308993,0.4675,2992.0,2991.0,1.31249664]
[1763648309195,0.5845,2992.7,2991.5,0.90699264]
[1763648309483,0.1816,2992.8,2991.5,0.90699264]
[1763648309484,0.1816,2992.8,2991.8,1.31249664]
[1763648309683,0.4888,2993.2,2992.1,0.405504]
[1763648309842,0.1816,2993.3,2992.3,0.405504]
[1763648310073,0.1962,2995.1,2993.3,0.405504]
[1763648310371,0.1962,2995.1,2992.9,0.45308169]
[1763648310569,0.4888,2995.0,2992.8,0.405504]
[1763648310821,0.4888,2995.0,2992.7,7.12049448]
[1763648311030,0.4888,2995.0,2993.2,7.12049448]
[1763648311328,0.1816,2996.1,2992.8,0.405504]
[1763648311329,30.0,2996.4,2994.9,7.12049448]
[1763648311479,0.1962,2996.5,2995.5,7.12049448]
[1763648311675,3.53207826,2997.8,2995.7,0.405504]
[1763648311676,0.685,2996.9,2995.7,0.405504]
[1763648311889,0.685,2996.9,2995.0,6.67779632]
[1763648311890,0.685,2996.9,2995.2,7.12049448]
[1763648312092,0.685,2996.9,2994.9,0.118]
[1763648312093,0.4888,2996.8,2994.7,0.118]
[1763648312385,0.118,2996.7,2994.7,0.118]
[1763648312585,0.4888,2996.6,2994.8,0.405504]
[1763648313113,0.1962,2994.9,2993.0,3.3411293]
[1763648313311,0.118,2994.8,2993.0,7.12049448]
[1763648313525,0.4888,2994.8,2993.1,6.68203534]
[1763648313814,7.12049448,2996.8,2994.1,7.12049448]
[1763648313815,0.4888,2995.3,2994.1,7.12049448]
[1763648314033,0.4888,2995.3,2993.1,6.68203534]
[1763648314034,0.4888,2995.3,2993.5,7.12049448]
[1763648314189,0.4888,2995.3,2993.1,7.12049448]
[1763648314373,0.523504,2995.2,2992.6,7.12049448]
[1763648314710,0.118,2995.1,2993.1,7.12049448]
[1763648315116,1.31249664,2994.9,2992.5,7.12049448]
[1763648315275,0.4888,2995.0,2992.5,7.12049448]
[1763648315607,0.405504,2994.6,2992.5,7.12049448]
[1763648315812,0.118,2994.5,2992.5,7.12049448]
[1763648316109,0.894304,2994.4,2992.0,7.12049448]
[1763648316314,0.4888,2994.4,2992.5,7.12049448]
[1763648316518,0.4888,2994.4,2993.1,0.90699264]
[1763648317121,0.4888,2994.4,2992.8,7.12049448]
[1763648317325,0.4888,2994.4,2992.9,0.90699264]
[1763648317626,0.4888,2994.4,2992.5,0.118]
[1763648317627,0.90699264,2994.3,2992.5,0.118]
[1763648317823,0.4888,2994.2,2992.5,0.118]
[1763648318329,0.1831,2992.6,2991.0,7.12049448]
[1763648318489,0.1831,2992.6,2991.5,7.12049448]
[1763648318838,0.4641,2994.5,2992.5,7.12049448]
[1763648319111,0.118,2995.2,2993.8,0.90699264]
[1763648319431,0.4641,2995.4,2993.8,1.31249664]
[1763648319715,0.5821,2995.3,2993.8,4.65271088]
[1763648319884,0.4641,2995.3,2993.8,4.65273312]
[1763648320071,0.1962,2995.5,2993.8,4.65273312]
[1763648320072,0.5821,2995.2,2993.8,7.9929696]
[1763648320275,0.1962,2995.5,2994.4,1.31249664]
[1763648320531,0.4641,2995.9,2994.9,1.31249664]
[1763648320727,0.4641,2996.5,2995.9,0.90699264]
[1763648320892,0.4641,2996.5,2995.9,1.31249664]
[1763648321225,0.002,2996.7,2996.5,1.31249664]
[1763648321513,0.118,2998.3,2994.5,0.4641]
[1763648321514,0.4641,2997.7,2994.5,0.4641]
[1763648321721,0.4641,2996.9,2995.3,0.90699264]
[1763648321899,0.4641,2996.9,2995.8,1.31249664]
[1763648322277,0.4641,2997.5,2995.8,1.31249664]
[1763648322500,0.1831,3000.0,2996.3,1.31249664]
[1763648322728,0.4641,2998.1,2996.5,0.405504]
[1763648322881,0.4641,2998.1,2996.7,1.31249664]
[1763648323275,0.1831,2998.5,2996.7,1.31249664]
[1763648323616,0.4641,2998.3,2996.9,1.31249664]
[1763648323906,0.4641,2997.9,2996.9,0.405504]
[1763648324217,7.31726154,2998.5,2995.3,3.33846447]
[1763648324375,7.31726154,2998.5,2994.0,0.09999999]
[1763648324376,0.4641,2998.4,2996.3,0.90699264]
[1763648324716,3.33285613,3000.5,2998.4,0.405504]
[1763648324939,0.6472,3000.0,2998.4,0.524504]
[1763648325092,0.1831,3000.0,2998.7,0.90699264]
[1763648325282,0.4641,2999.9,2998.8,0.405504]
[1763648325482,0.4641,2999.9,2996.7,1.63587244]
[1763648325483,0.4641,2999.9,2995.6,0.05]
[1763648325719,0.4641,2999.9,2998.2,0.405504]
[1763648326029,0.4641,2999.9,2998.2,1.31249664]
[1763648326324,7.13100185,2999.9,2997.8,0.119]
[1763648326478,0.4641,2999.8,2997.8,0.119]
[1763648326681,0.4641,2999.8,2997.7,0.90699264]
[1763648327115,0.5831,2999.8,2997.7,7.12049448]
[1763648327286,0.405504,2999.7,2997.0,7.12049448]
[1763648327509,0.405504,2999.7,2993.9,1.204]
[1763648327510,13.74194916,2999.3,2994.7,13.35693056]
[1763648327693,1.31249664,2998.9,2996.1,7.12049448]
[1763648327894,1.31249664,2998.5,2995.6,7.12049448]
[1763648328096,0.4633,2998.8,2995.7,0.03338117]
[1763648328414,0.405504,2998.6,2996.0,7.12049448]
[1763648328615,0.12,2998.5,2996.1,0.94036936]
[1763648328779,0.405504,2998.4,2996.1,0.03337672]
[1763648328976,0.405504,2998.2,2995.5,7.12049448]
[1763648329201,0.405504,2998.2,2995.6,0.03338229]
[1763648329412,0.1831,2998.3,2996.6,7.12049448]
[1763648329620,3.3332498,3000.1,2997.9,0.405504]
[1763648329823,6.96983126,3000.0,2996.7,10.01101209]
[1763648329979,0.90699264,2999.7,2997.1,0.405504]
[1763648330187,1.37109264,2999.9,2997.1,0.90699264]
[1763648330418,0.4641,2999.8,2997.2,0.405504]
[1763648330713,0.4641,2999.8,2997.1,0.90699264]
[1763648330714,0.90699264,2999.5,2996.1,6.6753446]
[1763648330915,0.1831,3000.0,2999.0,7.12049448]
[1763648331079,0.1831,3000.0,2999.1,0.90699264]
[1763648331279,0.4641,3000.4,2999.2,0.405504]
[1763648331476,3.45186693,3001.4,2999.2,0.405504]
[1763648331477,0.4641,3002.0,3000.2,7.12049448]
[1763648331681,0.1831,3002.7,3000.9,1.31249664]
[1763648331892,0.4641,3002.6,3000.8,7.12049448]
[1763648332196,0.6472,3003.2,3001.6,0.405504]
[1763648332591,0.4641,3003.1,3001.6,0.405504]
[1763648332924,0.1831,3003.8,3002.7,0.90699264]
[1763648333245,0.1831,3003.8,3001.6,0.90699264]
[1763648333379,0.5851,3003.7,3001.6,0.405504]
[1763648333580,0.4641,3003.7,3002.1,1.31249664]